[Event "44th Chess Olympiad Open 2022"]
[Site "Chennai"]
[Date "2022.07.30"]
[Round "2.12"]
[White "Henderson de La Fuente, Lance"]
[Black "Sargissian, Gabriel"]
[Result "1/2-1/2"]
[WhiteElo "2490"]
[BlackElo "2698"]
[Annotator "TA"]
[PlyCount "63"]
[EventDate "2022.??.??"]
[TimeControl "60"]

{[%evp 18,63,-21,-34,-31,-36,-37,-38,-20,-33,-31,-43,-35,-43,-31,-41,-22,-38,
-31,-32,0,0,4,-12,0,-44,-9,-41,-22,-30,0,7,19,8,68,68,62,52,54,45,52,27,48,49,
41,42,47,51]} 1. e4 {[%emt 0:00:15]} e5 {[%emt 0:00:09]} 2. Nf3 {[%emt 0:00:25]
} Nc6 {[%emt 0:00:37]} 3. Bb5 {[%emt 0:00:27]} a6 {[%emt 0:00:19]} 4. Bxc6 {
[%emt 0:01:24]} dxc6 {[%emt 0:00:22]} 5. O-O {[%emt 0:00:28]} Qf6 {[%emt 0:00:
00]} 6. d4 {[%emt 0:03:37]} exd4 {[%emt 0:00:26]} 7. Qxd4 {[%emt 0:02:18]} Qxd4
{[%emt 0:04:36]} 8. Nxd4 {[%emt 0:00:08]} Bd7 {[%emt 0:00:43]} 9. Nc3 {[%emt 0:
00:00]} O-O-O {[%emt 0:02:09]} 10. Be3 {[%emt 0:04:24]} Ne7 {[%emt 0:01:20]
[%cal Yg8e7,Ye7g6,Yg6e5] C68: Ruy Lopez: Exchange Variation, sidelines.} 11.
Rad1 {[%emt 0:05:05]} Ng6 {[%emt 0:02:48]} 12. f3 {[%emt 0:00:00] [#]} Re8 $146
{[%emt 0:04:36] Black is slightly better.} ({Predecessor:} 12... Bd6 13. Nde2
h5 14. Na4 Be6 15. b3 b6 16. h3 Kb7 17. c4 c5 18. Nac3 f6 {½-½ (50) Kamsky,G
(2657)-Moroni,L (2580) Cap d'Agde 2021}) 13. Nb3 {[%emt 0:00:00]} b6 {[%emt 0:
02:07]} 14. Nd2 {[%emt 0:01:20]} h5 {[%emt 0:07:40]} 15. Ne2 {[%emt 0:01:14]
[%cal Yc3e2,Ye2f4,Yf4d5]} Ne5 {[%emt 0:05:49]} 16. b3 {[%emt 0:04:23]} c5 {
[%emt 0:06:45]} 17. h3 {[%emt 0:15:01]} g6 {[%emt 0:00:00]} 18. Nf4 {[%emt 0:
03:15]} Be7 {[%emt 0:06:14]} 19. Nd5 {[%emt 0:00:44]} Bd8 {[%emt 0:00:07]} 20.
Rfe1 {[%emt 0:08:00]} g5 {[%emt 0:03:05]} 21. Bf2 {[%emt 0:01:52]} Rhg8 {
[%emt 0:03:06]} 22. g4 {[%emt 0:01:43]} Rh8 {[%emt 0:00:00]} 23. Bg3 {[%emt 0:
02:05]} Rh6 {[%emt 0:00:45]} 24. Kg2 {[%emt 0:00:56]} Nc6 {[%emt 0:01:14]} 25.
Nc4 {[%emt 0:01:51][%cal Yg3c7] Black must now prevent Bxc7!} b5 {[%emt 0:05:
22]} (25... Reh8 $11) 26. Nce3 $14 {[%emt 0:01:42] 0x0.001b82ddbd04dp-1022s
more active pieces. Pair of Knights!} Nb4 {[%emt 0:00:46]} 27. c3 {[%emt 0:02:
50]} Nxd5 {[%emt 0:00:48]} 28. Rxd5 {[%emt 0:00:28]} Rc6 {[%emt 0:04:14]} 29.
Rdd1 {[%emt 0:03:52]} hxg4 {[%emt 0:02:08]} 30. hxg4 {[%emt 0:00:04] White is
slightly better.} c4 {[%emt 0:00:31]} 31. bxc4 {[%emt 0:04:27][%cal Yb3c4,
Yc4b5]} Be6 {[%emt 0:00:06]} 32. cxb5 {[%emt 0:01:54] Weighted Error Value:
White=0.08 (flawless) /Black=0.13 (very precise)} 1/2-1/2

[Event "44th Chess Olympiad Open 2022"]
[Site "Chennai"]
[Date "2022.07.30"]
[Round "2.12"]
[White "Ribera Veganzones, Josep Maria"]
[Black "Petrosyan, Manuel"]
[Result "0-1"]
[WhiteElo "2228"]
[BlackElo "2610"]
[Annotator "TA"]
[PlyCount "50"]
[EventDate "2022.??.??"]
[TimeControl "60"]

{[%evp 12,50,4,15,2,8,8,0,67,0,0,0,0,0,0,0,0,0,0,-8,-12,-77,-42,-100,-93,-506,
-506,-1044,-1028,-1445,-1434,-1434,-1383,-1201,-945,-6215,-6117,-2089,-1988,
-1616,-1452]} 1. e4 {[%emt 0:00:05] Stohl,I} e5 {[%emt 0:01:57]} 2. Nf3 {
[%emt 0:00:32]} Nc6 {[%emt 0:00:09]} 3. d4 {[%emt 0:00:22]} exd4 {[%emt 0:00:
00]} 4. Nxd4 {[%emt 0:00:24]} Qf6 {[%emt 0:04:14]} 5. Be3 {[%emt 0:02:04]} Bc5
{[%emt 0:01:59]} 6. c3 {[%emt 0:01:27]} Nge7 {[%emt 0:04:14]} 7. Bb5 {[%emt 0:
00:00]} Bb6 {[%emt 0:10:58] C45: Scotch Game.} 8. O-O {[%emt 0:00:50]} O-O {
[%emt 0:04:59]} 9. a4 {[%emt 0:01:59]} a5 $5 {[%emt 0:07:18] [#] Leaves
trodden paths.} ({Better is} 9... Qg6 $11) 10. Na3 $146 {[%emt 0:04:19]} (10.
Nc2 $14) ({Predecessor:} 10. Nc2 Bxe3 11. Nxe3 d6 12. f4 Qh6 13. Nd2 f5 14.
exf5 Bxf5 15. Nxf5 Nxf5 16. Qf3 {1-0 (35) Najer,E (2659)-Inarkiev,E (2723)
Moscow 2017 CBM 177 [Stohl,I]}) 10... d5 {[%emt 0:05:19]} 11. Nxc6 {[%emt 0:00:
00]} bxc6 {[%emt 0:00:33]} 12. Bxb6 {[%emt 0:00:23]} cxb6 {[%emt 0:00:57]} 13.
Bd3 {[%emt 0:00:35]} Be6 {[%emt 0:08:46]} 14. exd5 {[%emt 0:04:07]} Nxd5 {
[%emt 0:03:13]} 15. Qc2 {[%emt 0:01:59]} h5 {[%emt 0:02:50][%cal Yh7h5,Yh5h4,
Yh4h3]} 16. Be4 {[%emt 0:04:00]} (16. g3 $11 {keeps the balance.}) 16... h4 {
[%emt 0:02:54] Black is more active.} 17. h3 {[%emt 0:05:26]} (17. Rfe1 $15)
17... Nf4 $17 {[%emt 0:04:43] Threatens to win with ...Qg5.} 18. Bxc6 $2 {
[%emt 0:18:09] This move loses the game for White.} (18. Kh1 $17 {is a better
chance.}) 18... Bxh3 $19 {[%emt 0:08:22] Black is clearly winning.} 19. Bf3 {
[%emt 0:05:08] [#]} (19. Bxa8 $142 Rxa8 20. Nc4) 19... Bxg2 $1 {[%emt 0:03:18]}
20. Bxg2 {[%emt 0:03:22]} (20. Bg4 Bxf1) 20... Qg5 {[%emt 0:01:18][%csl Gf4]
[%cal Rg5g2]} 21. f3 {[%emt 0:12:26]} h3 {[%emt 0:00:00] ...Rae8 is the strong
threat. Pin} 22. Rf2 {[%emt 0:00:34]} Rae8 {[%emt 0:02:47] Hoping for ...Re6.}
23. Nc4 {[%emt 0:01:03]} hxg2 {[%emt 0:00:00]} 24. Rxg2 {[%emt 0:00:57]} Nxg2 {
[%emt 0:00:10]} 25. Qxg2 {[%emt 0:00:21]} Qc5+ {[%emt 0:00:06] Weighted Error
Value: White=1.30/Black=0.18 (very precise)} 0-1

[Event "44th Chess Olympiad Open 2022"]
[Site "Chennai"]
[Date "2022.07.30"]
[Round "2.13"]
[White "Maghsoodloo, Parham"]
[Black "Baburin, Alexander"]
[Result "1-0"]
[WhiteElo "2701"]
[BlackElo "2400"]
[Annotator "TA"]
[PlyCount "67"]
[EventDate "2022.??.??"]
[TimeControl "60"]

{[%evp 11,67,39,31,0,30,35,28,8,0,-23,-18,-13,-20,-17,-11,-33,-10,-14,-16,-28,
-1,-13,0,-41,-42,-41,-31,-45,-35,-106,-25,-2,0,0,91,78,128,117,126,102,107,114,
110,104,112,112,165,167,178,184,267,280,282,275,257,237,335,314]} 1. e4 {
[%emt 0:00:03][%cal Ye2e4,Ye4e5]} Nf6 {[%emt 0:00:10]} 2. e5 {[%emt 0:00:00]}
Nd5 {[%emt 0:00:04]} 3. d4 {[%emt 0:00:08]} d6 {[%emt 0:00:06]} 4. c4 {[%emt 0:
00:05]} Nb6 {[%emt 0:00:04]} 5. f4 {[%emt 0:00:06]} g6 {[%emt 0:01:08]} 6. Nc3
{[%emt 0:03:32]} Bg7 {[%emt 0:01:56]} 7. Nf3 {[%emt 0:00:53] B03: Alekhine's
Defence: Four Pawns Attack.} O-O {[%emt 0:03:29]} 8. Be3 {[%emt 0:00:00]} Be6 {
[%emt 0:01:34]} 9. b3 {[%emt 0:08:46] White has an edge.} c5 {[%emt 0:04:08]}
10. dxc5 {[%emt 0:09:22]} N6d7 {[%emt 0:04:42][%csl Yc5,Ye5][%cal Rd6e5]} 11.
cxd6 {[%emt 0:17:34]} exd6 {[%emt 0:00:19]} 12. Be2 $5 {[%emt 0:05:32] An
interesting side line.} dxe5 {[%emt 0:03:17]} 13. Rc1 {[%emt 0:02:34]} exf4 {
[%emt 0:29:20]} 14. Bxf4 {[%emt 0:00:12] [#]} Qa5 $146 {[%emt 0:01:33]} ({
Predecessor:} 14... Nc6 15. O-O Qb6+ 16. Kh1 Rad8 17. Nb5 Nde5 18. Qe1 Qc5 19.
Nc7 Nxf3 20. Bxf3 Bf5 {½-½ (20) Grego,L (2021)-Kaufmann, M (2132) LSS email
2008}) 15. Bd2 {[%emt 0:02:00][%cal Yf4d2,Yd2b4,Yb4d6]} Qb6 {[%emt 0:09:34]}
16. Na4 $1 {[%emt 0:04:15]} Qc7 {[%emt 0:04:11]} 17. Bb4 {[%emt 0:02:39]} Re8 {
[%emt 0:01:58]} 18. Bd6 {[%emt 0:01:12]} Qd8 {[%emt 0:02:36]} 19. O-O {[%emt 0:
00:39]} Nc6 {[%emt 0:00:25] Prevents Nd4.} 20. Kh1 {[%emt 0:08:03] [#]} (20.
Bf4 $15) 20... Bg4 {[%emt 0:05:35]} (20... Nf6 $1 $17 21. h3 Bh6) 21. c5 {
[%emt 0:01:19]} Bf8 {[%emt 0:09:38]} 22. h3 {[%emt 0:00:00]} Bxf3 {[%emt 0:05:
55]} (22... Bh6 $11) 23. Bxf3 $16 {[%emt 0:00:17]} Nde5 {[%emt 0:00:13]} (23...
Rc8 $142) 24. Nc3 {[%emt 0:03:30][%cal Ya4c3,Yc3b5,Yb5d6]} Qh4 {[%emt 0:02:49]}
25. Nb5 {[%emt 0:05:38]} Bxd6 {[%emt 0:02:37]} 26. Nxd6 {[%emt 0:01:24]} Re7 {
[%emt 0:00:19]} 27. Bd5 {[%emt 0:00:05]} Rf8 {[%emt 0:01:00]} 28. a3 {[%emt 0:
00:50] White is more active.} Kg7 {[%emt 0:02:01]} (28... Qd4 $16) 29. b4 $18 {
[%emt 0:00:18]} a6 {[%emt 0:00:05]} 30. Qd2 {[%emt 0:03:25]} f5 {[%emt 0:00:54]
} (30... Rd7 {keeps fighting.} 31. Rce1 Qd8 32. Bxc6 Nxc6 33. Qc3+ (33. b5 axb5
34. Qb2+ Kg8 $14) 33... Kg8) 31. Rce1 {[%emt 0:01:32]} f4 {[%emt 0:02:21]} 32.
Re4 {[%emt 0:00:00]} Qg3 {[%emt 0:00:29]} 33. Qe1 {[%emt 0:02:29] [#] Black
must now prevent Bxc6.} ({Resist} 33. Rexf4 Rxf4 34. Qxf4 (34. Rxf4 Nf3 $11)
34... Qxf4 35. Rxf4 Nd3 $18) 33... Qxe1 {[%emt 0:01:38]} (33... Qg5 $142 34.
Qe2 h6) 34. Rfxe1 {[%emt 0:00:18] Weighted Error Value: White=0.11 (very
precise) /Black=0.22 (precise)} 1-0

[Event "44th Chess Olympiad Open 2022"]
[Site "Chennai"]
[Date "2022.07.30"]
[Round "2.13"]
[White "Idani, Pouya"]
[Black "O`Gorman, Tom"]
[Result "1-0"]
[WhiteElo "2641"]
[BlackElo "2401"]
[Annotator "TA"]
[PlyCount "91"]
[EventDate "2022.??.??"]
[TimeControl "60"]

{[%evp 15,91,18,23,0,11,17,36,29,33,21,52,0,40,49,36,40,56,39,58,73,66,72,72,
52,99,101,102,103,104,101,167,170,167,160,158,142,161,178,198,209,247,254,229,
191,350,317,354,281,281,275,260,223,226,206,291,283,283,287,277,235,299,299,
284,223,303,311,653,619,29982,29982,29991,29992,29993,29985,29985,29986,29986,
29978]} 1. e4 {[%emt 0:00:01]} e5 {[%emt 0:00:12]} 2. Nf3 {[%emt 0:00:05]} Nc6
{[%emt 0:00:07]} 3. Bb5 {[%emt 0:00:04]} a6 {[%emt 0:00:08]} 4. Ba4 {[%emt 0:
00:00]} Nf6 {[%emt 0:00:10]} 5. O-O {[%emt 0:00:04]} Be7 {[%emt 0:00:13]} 6.
Re1 {[%emt 0:00:04]} b5 {[%emt 0:00:11]} 7. Bb3 {[%emt 0:00:03]} O-O {[%emt 0:
00:00]} 8. d3 {[%emt 0:00:01]} d6 {[%emt 0:01:11]} 9. Bd2 {[%emt 0:00:05] C88:
Closed Ruy Lopez: Anti-Marshall Systems.} Rb8 {[%emt 0:12:05]} 10. h3 {[%emt 0:
00:00] [#]} a5 $146 {[%emt 0:15:10]} ({Predecessor:} 10... Nd7 11. a3 Nd4 12.
Ba2 Nc5 13. Nc3 Nxf3+ 14. Qxf3 Be6 15. Bd5 Bd7 16. b4 Ne6 {½-½ (38) Eljanov,
P (2671)-Ponomariov,R (2631) Dortmund 2021}) 11. a4 {[%emt 0:05:15] aiming for
axb5. White is slightly better.} b4 {[%emt 0:00:18]} 12. Be3 {[%emt 0:00:50]}
d5 {[%emt 0:05:06]} 13. Nbd2 {[%emt 0:13:22]} (13. exd5 $14 Nxd5 14. Bc1) 13...
Bb7 {[%emt 0:05:31]} (13... d4 $5 14. Bg5 Nd7 15. Bxe7 Nxe7 $11) 14. Bg5 {
[%emt 0:03:06]} dxe4 {[%emt 0:01:42]} 15. dxe4 {[%emt 0:04:19]} Nd7 {[%emt 0:
00:00]} 16. Be3 {[%emt 0:00:29]} Nb6 {[%emt 0:13:43]} 17. Nc4 {[%emt 0:04:26]}
Nxc4 {[%emt 0:00:20]} 18. Bxc4 {[%emt 0:00:05]} Qd6 {[%emt 0:05:41]} 19. Bd5 {
[%emt 0:05:20]} Rfd8 {[%emt 0:10:00] Black is on the road to losing.} (19...
Nd8 $14) 20. Qd3 $16 {[%emt 0:12:46] White is more active.} Qg6 {[%emt 0:10:24]
} 21. Qc4 {[%emt 0:03:59]} h6 {[%emt 0:02:36]} 22. Rad1 {[%emt 0:08:19]} Bg5 {
[%emt 0:01:51]} (22... Bf8 $16) 23. Bxg5 {[%emt 0:03:12]} hxg5 {[%emt 0:00:02]
[#]} 24. Nxg5 $1 {[%emt 0:05:09]} Qxg5 {[%emt 0:01:25]} 25. Bxc6 {[%emt 0:00:
09]} Bxc6 {[%emt 0:01:56]} 26. Qxc6 {[%emt 0:00:12]} Rd2 {[%emt 0:00:00]} 27.
Qxc7 {[%emt 0:02:01]} Rbd8 {[%emt 0:00:22]} 28. Rxd2 {[%emt 0:00:00]} Qxd2 $18
{[%emt 0:04:39] Endgame KQR-KQR} 29. Rf1 {[%emt 0:00:00]} Rd6 $2 {[%emt 0:02:
26]} (29... Ra8 {might work better.} 30. Qc6 (30. Qxe5 Qxc2 31. Qd5 Rc8 $18)
30... Rb8) 30. Qxa5 {[%emt 0:03:48]} Qd4 {[%emt 0:00:13]} 31. c3 {[%emt 0:06:
13]} bxc3 {[%emt 0:00:06]} 32. Qxc3 {[%emt 0:00:42]} Qxa4 {[%emt 0:00:14]} 33.
Qxe5 {[%emt 0:01:08]} Re6 {[%emt 0:00:05]} 34. Qf5 {[%emt 0:02:07]} Rxe4 {
[%emt 0:01:01]} (34... Qxe4 {was called for.} 35. Qa5 Rg6) 35. Rc1 {[%emt 0:00:
23]} g6 {[%emt 0:00:38]} 36. Qf6 {[%emt 0:02:05]} Qd7 {[%emt 0:01:22]} 37. Qc3
{[%emt 0:01:03]} Re8 {[%emt 0:01:47]} 38. b4 {[%emt 0:00:00][%cal Yb2b4,Yb4b5,
Yb5b6]} Rb8 {[%emt 0:00:18]} 39. Qb3 {[%emt 0:00:00]} Qb7 {[%emt 0:01:24]} 40.
b5 {[%emt 0:00:26][%cal Yb5b6] [#] Hoping for b6!} Qe4 $2 {[%emt 0:00:51]} (
40... Qb6 41. g3 Kg7) 41. b6 {[%emt 0:31:45]} Rb7 {[%emt 0:04:52]} 42. Rc8+ {
[%emt 0:00:00] White mates.} ({Weaker is} 42. Rc7 Qe1+ 43. Kh2 Qe5+ 44. g3 Qf6
$16) 42... Kh7 {[%emt 0:00:09]} 43. Qc3 {[%emt 0:00:00][%csl Gc8][%cal Rc3h8]}
g5 {[%emt 0:02:27]} 44. Rh8+ {[%emt 0:00:00]} Kg6 {[%emt 0:00:06]} 45. Rg8+ {
[%emt 0:00:00]} Kf5 {[%emt 0:00:16]} 46. g4+ {[%emt 0:00:00] Weighted Error
Value: White=0.10 (very precise) /Black=0.53} 1-0

[Event "44th Chess Olympiad Open 2022"]
[Site "Chennai"]
[Date "2022.07.30"]
[Round "2.13"]
[White "Murphy, Conor E"]
[Black "Tabatabaei, M. Amin"]
[Result "1-0"]
[WhiteElo "2404"]
[BlackElo "2664"]
[Annotator "TA"]
[PlyCount "131"]
[EventDate "2022.??.??"]
[TimeControl "60"]

{[%evp 9,131,31,29,29,31,31,39,29,39,26,27,0,17,21,29,7,0,5,0,0,40,39,45,33,39,
22,23,23,40,27,31,0,32,6,10,10,12,10,26,14,27,23,25,25,25,25,24,24,24,22,24,29,
89,94,107,82,82,82,222,97,147,108,86,0,147,146,146,137,147,143,783,591,1496,
1335,1160,1100,1493,1484,1749,1260,2005,2001,1898,1402,2067,2079,2098,1766,
2164,2164,2047,1916,1688,1892,1458,1347,2721,2242,5713,4328,29960,29964,7100,
6420,12795,3516,29975,29969,29971,29975,29976,29979,29979,29979,29979,29980,
29981,29982,29982,29981,29986,29987,29987,29988]} 1. e4 {[%emt 0:00:04]} c6 {
[%emt 0:00:11]} 2. d4 {[%emt 0:00:12]} d5 {[%emt 0:00:08]} 3. exd5 {[%emt 0:00:
00]} cxd5 {[%emt 0:00:07]} 4. Bd3 {[%emt 0:00:12]} Nc6 {[%emt 0:00:08]} 5. c3 {
[%emt 0:00:09]} e6 {[%emt 0:00:05]} 6. Nf3 {[%emt 0:03:45] B13: Caro-Kann:
Exchange Variation and Panov-Botvinnik Attack.} Bd6 {[%emt 0:00:22]} 7. O-O {
[%emt 0:00:38]} Nge7 {[%emt 0:00:06]} 8. Re1 {[%emt 0:00:51] White is slightly
better.} O-O {[%emt 0:00:29] [#]} 9. a4 $146 {[%emt 0:03:35]} ({Predecessor:} 
9. b3 f6 10. c4 dxc4 11. Bxc4 Kh8 12. Ba3 Nd5 13. Bxd6 Qxd6 14. Nbd2 b6 15. Qe2
{½-½ (74) Antipov,M (2592)-Yoo,C (2548) Saint Louis 2022}) 9... a6 {[%emt 0:
00:00]} 10. h3 {[%emt 0:04:37]} Ng6 {[%emt 0:11:38]} 11. Nbd2 {[%emt 0:06:18]}
Bd7 {[%emt 0:01:08]} 12. b4 {[%emt 0:05:54][%cal Yb2b4,Yb4b5]} Qc7 {[%emt 0:04:
05]} 13. Bb2 {[%emt 0:04:20]} Rfe8 {[%emt 0:03:00]} 14. Nb3 {[%emt 0:03:14]} a5
{[%emt 0:04:19]} 15. b5 {[%emt 0:04:47]} Nce7 {[%emt 0:00:00]} 16. Rc1 {
[%emt 0:00:56]} b6 {[%emt 0:00:34]} 17. c4 {[%emt 0:01:22]} dxc4 {[%emt 0:00:
40]} 18. Rxc4 {[%emt 0:01:12]} Qd8 {[%emt 0:08:05]} 19. Ne5 {[%emt 0:13:10]} (
19. Nc5 $5) 19... Bb4 {[%emt 0:12:36]} 20. Rf1 {[%emt 0:12:53]} Nd5 {[%emt 0:
00:21]} 21. Qf3 {[%emt 0:01:51]} Qe7 {[%emt 0:05:41]} 22. Be4 {[%emt 0:01:56]}
Rac8 {[%emt 0:11:35]} 23. Rfc1 {[%emt 0:03:03]} Rxc4 {[%emt 0:00:00]} (23...
Ngf4 {is interesting.} 24. Qd1 f6 25. Nxd7 Rxc4 26. Rxc4 Qxd7 27. Bc1 Ng6) 24.
Rxc4 {[%emt 0:02:38]} Rc8 {[%emt 0:09:18]} 25. Bxd5 {[%emt 0:00:00]} exd5 {
[%emt 0:04:45]} 26. Qxd5 {[%emt 0:00:51]} Rxc4 $1 {[%emt 0:01:07]} 27. Qxc4 {
[%emt 0:01:09]} Nxe5 {[%emt 0:10:31]} 28. dxe5 {[%emt 0:00:06]} Be6 {[%emt 0:
00:07] This bishop pair is nice.} 29. Qd3 {[%emt 0:05:01]} h5 {[%emt 0:04:12]}
30. Nd4 {[%emt 0:03:04]} Qd7 {[%emt 0:03:25]} (30... Qd8 $11 {remains equal.})
31. Qf3 $16 {[%emt 0:01:12]} Bc5 {[%emt 0:00:02]} 32. Nxe6 {[%emt 0:05:54]}
fxe6 {[%emt 0:02:18] Endgame KQB-KQB} 33. Bc3 {[%emt 0:01:37] Prevents Qd2.} ({
Don't play} 33. Qxh5 $6 Qd2 34. Qe8+ Kh7 35. Qh5+ Kg8 36. Qe8+ Kh7 37. Qh5+ Kg8
$11) 33... Bb4 {[%emt 0:00:46]} (33... Qd8 $16 {was called for.}) 34. Kh2 {
[%emt 0:02:29]} (34. Bxb4 $18 axb4 35. Qb3 (35. Qxh5 b3 $11)) 34... h4 {
[%emt 0:00:37]} (34... Bc5 $142) 35. Qa8+ {[%emt 0:00:00]} Kf7 {[%emt 0:00:02]}
36. Qf3+ {[%emt 0:00:07]} (36. Bxb4 $142 axb4 37. Qe4) 36... Kg8 {[%emt 0:00:
57] White now steadily converts the win.} 37. Qc6 $1 {[%emt 0:01:01]} Qf7 {
[%emt 0:00:09] [#]} (37... Qxc6 $2 38. bxc6 Bxc3 39. f4 $18) 38. Qa8+ $1 {
[%emt 0:00:11]} ({Weaker is} 38. Qxb6 Bxc3 39. Qd8+ Qf8 40. Qxh4 Bxe5+ 41. Kg1
Qd6 $17) 38... Bf8 {[%emt 0:00:36] [#] Hoping for ...Qf4+.} 39. Qf3 {[%emt 0:
00:41] Against Qf4+. White is more active.} Qxf3 {[%emt 0:00:00]} (39... Bc5
$16) 40. gxf3 {[%emt 0:00:02] Bd4 is the strong threat. KB-KB} Be7 {[%emt 0:00:
35]} 41. Bd4 {[%emt 0:12:45]} Bd8 {[%emt 0:00:00]} 42. f4 {[%emt 0:00:36]} Kf7
{[%emt 0:00:02]} 43. f5 {[%emt 0:00:41]} exf5 {[%emt 0:00:52]} 44. f4 {[%emt 0:
00:39]} Ke6 {[%emt 0:18:16]} 45. Kg2 {[%emt 0:00:00]} Kd5 {[%emt 0:02:56]} 46.
Bf2 {[%emt 0:00:44]} Ke6 {[%emt 0:00:05]} 47. Kf3 {[%emt 0:00:47]} Kd5 {
[%emt 0:00:06]} 48. Ke2 {[%emt 0:01:24]} Ke6 {[%emt 0:00:31]} 49. Kd3 {[%emt 0:
01:04]} Kd5 {[%emt 0:00:18]} 50. Be3 {[%emt 0:00:00]} Bc7 {[%emt 0:00:41]} 51.
Bd4 {[%emt 0:00:20]} Bd8 {[%emt 0:03:28]} 52. Bf2 {[%emt 0:00:06]} Ke6 {
[%emt 0:00:03]} 53. Kc4 {[%emt 0:00:26]} g5 {[%emt 0:00:00]} 54. fxg5 {[%emt 0:
00:13]} Kxe5 {[%emt 0:00:04]} 55. Bxh4 {[%emt 0:00:00]} Ke6 {[%emt 0:03:43]}
56. Kd3 {[%emt 0:01:21]} Bc7 {[%emt 0:00:50]} 57. Ke3 {[%emt 0:02:11]} (57. g6
$142 Be5 58. Bd8) 57... Kf7 {[%emt 0:00:15]} 58. Kf3 {[%emt 0:00:26] White
mates.} Kg6 {[%emt 0:00:06]} 59. Bg3 {[%emt 0:00:21]} Bd8 {[%emt 0:00:14]} 60.
h4 {[%emt 0:00:21]} Be7 {[%emt 0:00:05]} 61. Bf2 {[%emt 0:00:00]} Bd8 {[%emt 0:
00:05]} 62. Be3 {[%emt 0:00:39]} Kh5 {[%emt 0:00:36]} 63. Kf4 {[%emt 0:00:42]}
Kg6 {[%emt 0:00:05]} 64. Bd4 {[%emt 0:00:52]} Bc7+ {[%emt 0:00:18]} 65. Be5 {
[%emt 0:00:11]} Bd8 {[%emt 0:00:04]} 66. Bd6 {[%emt 0:00:00] Weighted Error
Value: White=0.10 (very precise) /Black=0.33} 1-0

[Event "44th Chess Olympiad Open 2022"]
[Site "Chennai"]
[Date "2022.07.30"]
[Round "2.13"]
[White "Kanyamarala, Tarun"]
[Black "Mousavi, Seyed Khalil"]
[Result "1/2-1/2"]
[WhiteElo "2379"]
[BlackElo "2537"]
[Annotator "TA"]
[PlyCount "101"]
[EventDate "2022.??.??"]
[TimeControl "60"]

{[%evp 14,101,24,32,54,57,61,59,72,34,31,48,50,45,44,52,64,43,31,52,86,43,52,
35,29,33,68,58,72,83,87,25,21,18,10,-2,0,0,0,0,6,6,8,0,15,16,16,15,13,8,33,0,0,
0,0,0,0,0,0,0,0,0,0,0,0,0,0,0,0,0,0,0,0,0,0,0,0,0,0,0,0,0,0,0,0,0,0,0,0,0]} 1.
d4 {[%emt 0:00:04]} Nf6 {[%emt 0:00:18]} 2. c4 {[%emt 0:00:11]} e6 {[%emt 0:00:
00]} 3. Nc3 {[%emt 0:00:35]} Bb4 {[%emt 0:00:47]} 4. g3 {[%emt 0:02:28]} O-O {
[%emt 0:03:27]} 5. Bg2 {[%emt 0:00:23]} d5 {[%emt 0:07:22]} 6. Nf3 {[%emt 0:00:
00]} c5 {[%emt 0:04:18]} 7. cxd5 {[%emt 0:07:25] 7.0-0 is the hot move.} Nxd5 {
[%emt 0:04:02]} 8. Bd2 {[%emt 0:01:15]} Nxc3 {[%emt 0:11:18] E20: Nimzo-Indian:
4 g3 and 4 f3.} 9. bxc3 {[%emt 0:03:33]} Ba5 {[%emt 0:00:09]} 10. O-O {[%emt 0:
00:00]} Nc6 {[%emt 0:00:06] White is slightly better.} 11. Rb1 {[%emt 0:22:31]
[#]} Bb6 $146 {[%emt 0:04:31]} ({Predecessor:} 11... Qe7 12. Qa4 Rd8 13. Rfd1
a6 14. Be3 Bxc3 15. dxc5 Rxd1+ 16. Qxd1 e5 17. Qc2 Ba5 {0-1 (36) Medancic,R 
(2287)-Stavrianakis,I (2055) Obrenovac 2005}) 12. e3 {[%emt 0:00:51]} Qe7 {
[%emt 0:04:02]} 13. Bc1 {[%emt 0:04:26]} cxd4 {[%emt 0:15:11]} 14. cxd4 {
[%emt 0:05:03]} Rd8 {[%emt 0:05:54]} 15. Qb3 {[%emt 0:13:39]} (15. Nd2 $5 {
[%cal Rd2c4]}) 15... e5 {[%emt 0:05:49]} 16. Ba3 {[%emt 0:06:07]} Qf6 {[%emt 0:
00:00]} 17. dxe5 {[%emt 0:12:28]} Nxe5 {[%emt 0:00:06]} 18. Nxe5 {[%emt 0:00:
00]} Qxe5 {[%emt 0:00:05]} 19. Bb2 {[%emt 0:00:53]} Qa5 {[%emt 0:05:31]} 20.
Bc3 {[%emt 0:01:51]} Qg5 {[%emt 0:00:05]} 21. h4 {[%emt 0:05:48]} Qg6 {[%emt 0:
00:00]} 22. Be5 {[%emt 0:02:19]} (22. a4 $16) 22... Be6 $11 {[%emt 0:05:54]}
23. Qb5 {[%emt 0:02:19]} Rac8 {[%emt 0:03:13]} 24. Rbd1 {[%emt 0:02:38]} Qc2 {
[%emt 0:04:56]} 25. Rxd8+ {[%emt 0:02:21]} Rxd8 {[%emt 0:00:04]} 26. Bxb7 {
[%emt 0:00:28]} Bc4 {[%emt 0:04:54]} 27. Qb1 {[%emt 0:01:55]} Qd2 {[%emt 0:00:
00]} 28. Re1 {[%emt 0:00:25]} Bxa2 {[%emt 0:01:01]} 29. Qa1 {[%emt 0:00:21]} f6
{[%emt 0:02:59]} 30. Bc3 {[%emt 0:00:10]} Qc2 {[%emt 0:00:01]} 31. Rc1 {
[%emt 0:00:45]} Qb3 {[%emt 0:01:33]} 32. Qb2 {[%emt 0:00:49]} Rd1+ {[%emt 0:00:
00] The position is equal.} 33. Rxd1 {[%emt 0:00:43]} Qxd1+ {[%emt 0:00:06]}
34. Kh2 {[%emt 0:00:18]} Bd5 {[%emt 0:00:43][%csl Gd5][%cal Rd1h1] [#]} 35. Qa1
{[%emt 0:00:24]} Qf3 {[%emt 0:00:40][%csl Gd5][%cal Rf3g2]} 36. Bxd5+ {[%emt 0:
00:00]} Qxd5 {[%emt 0:00:04] Endgame KQB-KQB} 37. Qa4 {[%emt 0:00:00][%cal
Ra4e8]} Kf7 {[%emt 0:00:07] Against Qe8+} 38. Bb4 {[%emt 0:00:41]} h5 {[%emt 0:
00:46]} 39. Kg1 {[%emt 0:00:19]} Kg8 {[%emt 0:02:11]} 40. Qe8+ {[%emt 0:00:27]}
Kh7 {[%emt 0:00:01]} 41. Bf8 {[%emt 0:03:04]} Bc5 {[%emt 0:00:00]} 42. Bxc5 {
[%emt 0:03:16]} Qxc5 {[%emt 0:01:38] KQ-KQ} 43. Qe4+ {[%emt 0:00:00]} g6 {
[%emt 0:01:40]} 44. Qe6 {[%emt 0:07:08]} Qf8 {[%emt 0:02:42] Inhibits Qf7+.}
45. e4 {[%emt 0:01:40]} Kg7 {[%emt 0:03:20]} 46. f4 {[%emt 0:00:00]} Qc5+ {
[%emt 0:01:17]} 47. Kg2 {[%emt 0:02:18]} Qc2+ {[%emt 0:00:07]} 48. Kh3 {
[%emt 0:02:15]} Qf2 {[%emt 0:02:28]} 49. Qe7+ {[%emt 0:03:13]} Kg8 {[%emt 0:01:
00]} 50. Qe8+ {[%emt 0:00:11]} Kg7 {[%emt 0:00:07]} 51. Qe7+ {[%emt 0:00:07]
Weighted Error Value: White=0.08 (flawless) /Black=0.05 (flawless)} 1/2-1/2